[Event "Turkish Second League 2019"]
[Site "Konya"]
[Date "2019.07.23"]
[Round "2"]
[White "Caner, Resul"]
[Black "Uyan, Ata Gunduz"]
[Result "1/2-1/2"]
[ECO "C10"]
[WhiteElo "1921"]
[BlackElo "1781"]
[Annotator "NA"]
[PlyCount "197"]
[EventDate "2019.07.22"]
[EventType "team-tourn"]
[EventCountry "TUR"]
[SourceTitle "playchess.com"]
[Source "ChessBase"]
[SourceQuality "1"]
[TimeControl "5400+30"]

1. e4 {[%emt 0:00:30]} e6 {[%emt 0:00:30]} 2. d4 {[%emt 0:00:30]} d5 {[%emt 0:00:30]} 3. Nc3 {[%emt 0:00:30]} dxe4 {[%emt 0:00:30]} 4. Nxe4 {[%emt 0:00:30]} Nd7 {[%emt 0:00:00]} 5. Nf3 {[%emt 0:00:30]} Ngf6 {[%emt 0:00:00]} 6. Nxf6+ {[%emt 0:02:30]} Nxf6 {[%emt 0:00:00]} 7. Bd3 {[%emt 0:00:00]} Be7 {[%emt 0:00:00]} 8. Ne5 {[%emt 0:01:00]} O-O {[%emt 0:02:30]} 9. O-O {[%emt 0:12:30]} h6 {[%emt 0:00:30] C10: French with 3 Nc3: Unusual Black 3rd moves and 3...dxe4} (9... Nd7 10. Bf4 Nxe5 11. Bxe5 Bf6 12. Bxf6 Qxf6 13. c3 Bd7 14. Be4 Rab8 15. Qf3 Qxf3 16. Bxf3 Rfd8 17. Rfe1 {½-½ (31) Ruiz Castillo,J (2433)-Cruz,C (2540) Brownsville 2015}) 10. Qe2 $146 {[%emt 0:03:30]} ({Predecessor:} 10. Be3 Nd5 11. Bd2 Bg5 12. f4 Be7 13. c3 c5 14. Nf3 cxd4 15. cxd4 Qb6 16. Bc1 Bd7 17. Kh1 {½-½ (34) Ivanovic,Z (2096)-Stanisavljevic,V Jagodina 2012}) 10... Qxd4 {[%emt 0:04:30]} 11. Rd1 {[%emt 0:00:30]} Qc5 {[%emt 0:04:30]} 12. Nf3 {[%emt 0:07:30]} b6 {[%emt 0:03:30]} 13. Ne5 {[%emt 0:09:30]} Bb7 {[%emt 0:10:30]} 14. Bd2 {[%emt 0:02:30]} Bd6 {[%emt 0:10:30]} 15. Nc4 {[%emt 0:00:30]} Qh5 {[%emt 0:00:30]} 16. Qxh5 {[%emt 0:04:30]} Nxh5 {[%emt 0:00:30]} 17. Nxd6 {[%emt 0:00:30]} cxd6 {[%emt 0:00:30]} 18. Be2 {[%emt 0:00:30]} Nf6 {[%emt 0:00:00]} 19. Bb4 {[%emt 0:00:30]} Rfc8 {[%emt 0:00:00]} 20. Bxd6 {[%emt 0:06:30]} Rxc2 {[%emt 0:00:30]} 21. Bd3 {[%emt 0:07:30]} Rcc8 {[%emt 0:03:30]} 22. Be5 {[%emt 0:00:30]} Nd5 {[%emt 0:01:30]} 23. Be4 {[%emt 0:00:30]} Rc4 {[%emt 0:00:30]} 24. Bxd5 {[%emt 0:00:30]} Bxd5 {[%emt 0:02:30]} 25. f3 {[%emt 0:07:30]} Rac8 {[%emt 0:01:30]} 26. Bc3 {[%emt 0:00:30]} b5 {[%emt 0:00:00]} 27. a3 {[%emt 0:06:30]} Kf8 {[%emt 0:00:00]} 28. Rd4 {[%emt 0:00:30]} g6 {[%emt 0:01:30]} 29. Re1 {[%emt 0:01:30]} Rxd4 {[%emt 0:00:30]} 30. Bxd4 {[%emt 0:00:30]} a6 {[%emt 0:01:30]} 31. Kf2 {[%emt 0:03:30]} Ke7 {[%emt 0:00:30]} 32. g4 {[%emt 0:00:30]} Rc4 {[%emt 0:04:30]} 33. Bc3 {[%emt 0:01:41]} Kd6 {[%emt 0:01:30]} 34. h3 {[%emt 0:01:16]} Kc5 {[%emt 0:02:30]} 35. Bg7 $15 {[%emt 0:02:57]} h5 {[%emt 0:00:00]} 36. gxh5 {[%emt 0:01:32]} gxh5 {[%emt 0:00:00]} 37. Re3 {[%emt 0:06:29]} Rf4 {[%emt 0:09:30]} 38. Kg3 {[%emt 0:01:12]} Rf5 {[%emt 0:00:00]} 39. f4 {[%emt 0:00:57]} f6 {[%emt 0:00:00]} 40. Rc3+ {[%emt 0:03:47]} Kd4 {[%emt 0:00:30]} 41. Bf8 {[%emt 0:00:00]} Bc4 {[%emt 0:00:30]} 42. Bd6 {[%emt 0:01:00]} Ke4 {[%emt 0:02:30]} 43. h4 {[%emt 0:05:01]} Rd5 {[%emt 0:00:30]} 44. Bc7 {[%emt 0:00:07]} Rd7 {[%emt 0:00:30]} 45. Bb8 {[%emt 0:00:43]} Rd8 {[%emt 0:01:30]} 46. Bc7 {[%emt 0:00:34]} Rd2 {[%emt 0:00:30]} 47. b3 {[%emt 0:00:47]} Bd5 {[%emt 0:00:00]} 48. Bb6 {[%emt 0:00:18]} Rb2 {[%emt 0:01:00]} 49. Bf2 {[%emt 0:00:55]} Rxb3 {[%emt 0:00:30]} 50. Rxb3 {[%emt 0:00:30]} Bxb3 {[%emt 0:00:00]} 51. Bc5 {[%emt 0:00:00]} e5 {[%emt 0:01:00]} 52. fxe5 {[%emt 0:00:00]} fxe5 {[%emt 0:00:30]} 53. Kf2 {[%emt 0:00:30]} Kd3 {[%emt 0:00:00]} 54. Be3 {[%emt 0:00:00]} Bd1 {[%emt 0:01:00]} 55. Bb6 {[%emt 0:01:32]} e4 {[%emt 0:00:00]} 56. Be3 {[%emt 0:00:12]} a5 {[%emt 0:00:00]} 57. Bc5 {[%emt 0:01:26]} Kc4 {[%emt 0:00:30]} 58. Be7 {[%emt 0:00:10]} b4 {[%emt 0:00:00]} 59. axb4 {[%emt 0:00:00]} axb4 {[%emt 0:04:00]} 60. Ke1 {[%emt 0:00:15]} Bf3 {[%emt 0:00:30]} 61. Kd2 {[%emt 0:00:23]} b3 {[%emt 0:00:30]} 62. Bf6 {[%emt 0:00:44]} Bg4 {[%emt 0:00:30]} 63. Bb2 {[%emt 0:00:21]} Bd7 {[%emt 0:00:30]} 64. Ke3 {[%emt 0:00:33]} Kd5 {[%emt 0:00:30]} 65. Kf4 {[%emt 0:00:43]} Bb5 {[%emt 0:00:30]} 66. Ke3 {[%emt 0:00:14]} Bd3 {[%emt 0:00:00]} 67. Kf4 {[%emt 0:00:16]} Bc2 {[%emt 0:00:00]} 68. Ke3 {[%emt 0:00:41]} Kc4 {[%emt 0:00:30]} 69. Bf6 {[%emt 0:00:29]} Kb4 {[%emt 0:00:30]} 70. Bb2 {[%emt 0:00:00]} Kc5 {[%emt 0:00:00]} 71. Kf4 {[%emt 0:00:00]} Kd6 {[%emt 0:01:00]} 72. Ke3 {[%emt 0:00:38]} Ke6 {[%emt 0:00:30]} 73. Kf4 {[%emt 0:00:09]} Bd3 {[%emt 0:00:30]} 74. Bc3 {[%emt 0:00:14]} Bb1 {[%emt 0:00:00]} 75. Bb2 {[%emt 0:00:14]} Kd5 {[%emt 0:01:00]} 76. Ke3 {[%emt 0:00:11]} Kc4 {[%emt 0:00:00]} 77. Bf6 {[%emt 0:00:14]} Bc2 {[%emt 0:00:00]} 78. Bb2 {[%emt 0:00:39]} Kb4 {[%emt 0:00:30]} 79. Kf4 {[%emt 0:00:00]} Kc4 {[%emt 0:01:30]} 80. Ke3 {[%emt 0:00:01]} Kd5 {[%emt 0:00:00]} 81. Kf4 {[%emt 0:00:42]} Ke6 {[%emt 0:00:00]} 82. Bc3 {[%emt 0:00:00]} Bd3 {[%emt 0:00:30]} 83. Bb2 {[%emt 0:00:04]} Bc2 {[%emt 0:00:30]} 84. Bc3 {[%emt 0:00:09]} Kd5 {[%emt 0:00:00]} 85. Ke3 {[%emt 0:00:12]} Bd1 {[%emt 0:00:00]} 86. Bb2 {[%emt 0:00:15]} Bg4 {[%emt 0:00:30]} 87. Bc3 {[%emt 0:00:35]} Kc4 {[%emt 0:01:30]} 88. Bb2 {[%emt 0:00:37]} Bf5 {[%emt 0:00:30]} 89. Bf6 {[%emt 0:00:00]} Bh7 {[%emt 0:00:30]} 90. Bb2 {[%emt 0:00:00]} Kd5 {[%emt 0:00:30]} 91. Bc3 {[%emt 0:01:43]} Bg6 {[%emt 0:00:30]} 92. Bb2 {[%emt 0:00:37]} Be8 {[%emt 0:00:30]} 93. Bc3 {[%emt 0:00:15]} Bc6 {[%emt 0:00:00]} 94. Bb2 {[%emt 0:00:00]} Ke6 {[%emt 0:00:00]} 95. Kf4 {[%emt 0:00:04]} Bd5 {[%emt 0:00:30]} 96. Bc3 {[%emt 0:00:07]} e3 {[%emt 0:00:00]} 97. Kxe3 {[%emt 0:00:37]} Kf5 {[%emt 0:00:00]} 98. Kd2 {[%emt 0:00:23]} Ke4 {[%emt 0:00:30]} 99. Kc1 {[%emt 0:00:37]} 1/2-1/2

[Event "Turkish Second League 2019"]
[Site "Konya"]
[Date "2019.07.23"]
[Round "2"]
[White "Gurbuz, Bayram"]
[Black "Demirbag, Alihan"]
[Result "0-1"]
[ECO "D00"]
[WhiteElo "1906"]
[BlackElo "2087"]
[Annotator "NA"]
[PlyCount "134"]
[EventDate "2019.07.22"]
[EventType "team-tourn"]
[EventCountry "TUR"]
[SourceTitle "playchess.com"]
[Source "ChessBase"]
[SourceQuality "1"]
[TimeControl "5400+30"]

1. d4 {[%emt 0:00:30]} d5 {[%emt 0:02:30]} 2. e3 {[%emt 0:00:30]} e6 {[%emt 0:02:30]} 3. Nd2 {[%emt 0:01:30]} (3. Nf3 Nf6 4. c4 c5 5. cxd5 exd5 6. Be2 Nc6 7. O-O cxd4 8. exd4 Be7 9. Nc3 O-O 10. Bg5 Be6 {½-½ (10) Kurajica,B (2516)-Dizdarevic,E (2458) Sarajevo 2018}) 3... c5 {[%emt 0:02:30]} 4. c3 {[%emt 0:02:30]} Nc6 {[%emt 0:00:00]} 5. f4 {[%emt 0:03:30]} Bd6 {[%emt 0:16:00]} 6. Ndf3 {[%emt 0:01:30] D00: 1 d4 d5: Unusual lines} f5 {[%emt 0:07:30]} 7. Bd3 {[%emt 0:01:30]} Nf6 $146 {[%emt 0:00:30]} ({Predecessor:} 7... c4 8. Bc2 Nf6 9. b3 b5 10. Bb2 Qa5 11. Ne2 Ng4 12. Qd2 {1-0 (44) Llacuna Cufi,S (1986)-Fabrega Ramon,S (1763) Balaguer 2012}) 8. Ne2 {[%emt 0:01:30]} c4 {[%emt 0:07:30]} 9. Bc2 {[%emt 0:00:30]} b5 {[%emt 0:02:30]} 10. a3 {[%emt 0:06:30]} a5 {[%emt 0:02:30]} 11. O-O {[%emt 0:03:30]} Bd7 {[%emt 0:03:30]} 12. b3 {[%emt 0:01:30]} ({White should play} 12. Ne5 $15) 12... cxb3 {[%emt 0:01:30]} 13. Bxb3 {[%emt 0:00:30]} a4 {[%emt 0:00:30]} 14. Bc2 {[%emt 0:00:30]} O-O {[%emt 0:00:30]} 15. Ne5 {[%emt 0:00:30]} Na5 {[%emt 0:00:30]} 16. Rf3 {[%emt 0:06:30]} Qe7 {[%emt 0:01:30]} 17. Rh3 {[%emt 0:02:30]} Rac8 {[%emt 0:03:30]} 18. Bb2 {[%emt 0:02:30]} Be8 {[%emt 0:19:30]} 19. Qe1 {[%emt 0:20:30]} Bh5 {[%emt 0:00:30]} 20. Ng3 {[%emt 0:07:30]} Bg4 {[%emt 0:00:00]} 21. Rh4 {[%emt 0:00:30]} Bxe5 {[%emt 0:02:00]} 22. dxe5 {[%emt 0:00:30]} (22. fxe5 $17 {only move.} Nd7 23. Rxg4 fxg4 24. e4) 22... Nd7 {[%emt 0:00:00]} 23. Nf1 {[%emt 0:01:30]} Nc4 {[%emt 0:04:00]} 24. Bc1 {[%emt 0:04:30]} Nc5 {[%emt 0:00:30]} 25. Rb1 {[%emt 0:04:30]} Be2 {[%emt 0:01:28]} 26. Rh3 {[%emt 0:07:09]} Bd3 {[%emt 0:00:59]} 27. Qd1 {[%emt 0:02:25]} Bxc2 {[%emt 0:00:10]} 28. Qxc2 {[%emt 0:00:00]} Nb3 {[%emt 0:00:38]} 29. Rxb3 {[%emt 0:00:19]} axb3 {[%emt 0:00:02]} 30. Qxb3 {[%emt 0:00:00]} Qc5 {[%emt 0:01:32]} 31. Qd1 {[%emt 0:04:48]} g6 {[%emt 0:00:58]} 32. g4 {[%emt 0:01:25]} Nxa3 {[%emt 0:02:40]} 33. gxf5 {[%emt 0:00:33]} Rxf5 {[%emt 0:00:02]} 34. Ng3 {[%emt 0:03:50]} Qxc3 {[%emt 0:00:30]} 35. Bd2 {[%emt 0:00:00]} Qc2 {[%emt 0:00:00]} 36. Qe1 {[%emt 0:01:41]} Rf7 {[%emt 0:02:18]} 37. f5 {[%emt 0:03:01]} exf5 {[%emt 0:00:01]} 38. e6 {[%emt 0:00:17]} Re7 {[%emt 0:01:20]} 39. Bb4 {[%emt 0:02:01]} Qc1 {[%emt 0:00:01]} 40. Qxc1 {[%emt 0:00:01]} Rxc1+ {[%emt 0:00:32]} 41. Nf1 {[%emt 0:00:13]} Ra7 {[%emt 0:00:37]} 42. e7 {[%emt 0:00:06]} Rc8 {[%emt 0:00:00]} 43. e4 {[%emt 0:00:56]} Nc4 {[%emt 0:02:06]} 44. exd5 {[%emt 0:00:26]} h5 {[%emt 0:03:33]} 45. d6 {[%emt 0:01:35]} Kf7 {[%emt 0:01:17]} 46. Rd3 {[%emt 0:00:12]} Rd7 {[%emt 0:01:21]} 47. Nd2 {[%emt 0:01:15]} Rc6 {[%emt 0:02:49]} 48. Nxc4 {[%emt 0:03:46]} bxc4 {[%emt 0:00:02]} 49. Re3 {[%emt 0:00:15]} Rc8 {[%emt 0:00:30]} 50. Kf2 {[%emt 0:00:00]} c3 {[%emt 0:00:13]} 51. Bxc3 {[%emt 0:00:54]} Rxd6 {[%emt 0:00:11]} 52. Bb4 {[%emt 0:00:00]} Re6 {[%emt 0:00:20]} 53. Ra3 {[%emt 0:00:44]} Rc4 {[%emt 0:01:55]} 54. Rb3 {[%emt 0:00:57]} Rb6 {[%emt 0:00:27]} 55. Re3 {[%emt 0:00:45]} Re4 {[%emt 0:00:02]} 56. Rxe4 {[%emt 0:00:31]} fxe4 {[%emt 0:00:02]} 57. Bc5 {[%emt 0:00:15]} Rc6 {[%emt 0:00:01]} 58. Bb4 {[%emt 0:00:15]} Rc4 {[%emt 0:00:07]} 59. Bd6 {[%emt 0:00:00]} Rc6 {[%emt 0:00:13]} 60. Bb4 {[%emt 0:00:29]} Rc2+ {[%emt 0:00:16]} 61. Kg3 $19 {[%emt 0:00:00]} e3 {[%emt 0:00:24]} 62. Kf3 {[%emt 0:00:45]} Rxh2 {[%emt 0:00:03]} 63. Kxe3 {[%emt 0:00:14]} Rh3+ {[%emt 0:00:30]} 64. Kf2 {[%emt 0:00:00]} Rh4 {[%emt 0:00:00]} 65. Bd6 {[%emt 0:00:27]} Re4 {[%emt 0:00:00]} 66. Kf3 {[%emt 0:00:10]} Re6 {[%emt 0:00:13]} 67. Bc5 {[%emt 0:00:13]} Rxe7 {[%emt 0:00:00]} 0-1

[Event "Turkish Second League 2019"]
[Site "Konya"]
[Date "2019.07.23"]
[Round "2"]
[White "Akdag, Omer Amir"]
[Black "Derbentli, Refik"]
[Result "0-1"]
[ECO "C00"]
[WhiteElo "1903"]
[BlackElo "1324"]
[Annotator "NA"]
[PlyCount "150"]
[EventDate "2019.07.22"]
[EventType "team-tourn"]
[EventCountry "TUR"]
[SourceTitle "playchess.com"]
[Source "ChessBase"]
[SourceQuality "1"]
[TimeControl "5400+30"]

1. Nf3 {[%emt 0:00:30]} Nf6 {[%emt 0:00:30]} 2. g3 {[%emt 0:00:30]} e6 {[%emt 0:00:30]} 3. Bg2 {[%emt 0:00:00]} d5 {[%emt 0:00:30]} 4. O-O {[%emt 0:00:00]} Be7 {[%emt 0:02:30]} 5. d3 {[%emt 0:00:30]} O-O {[%emt 0:02:30]} 6. Nbd2 {[%emt 0:00:00]} c5 {[%emt 0:01:30]} 7. e4 {[%emt 0:00:00]} dxe4 {[%emt 0:09:30]} 8. dxe4 {[%emt 0:00:30]} Nc6 {[%emt 0:07:30]} 9. c3 {[%emt 0:01:30]} Qc7 {[%emt 0:10:30]} 10. Qe2 {[%emt 0:01:30] C00: French: Unusual White 2nd moves} Rd8 {[%emt 0:03:30]} 11. Nc4 {[%emt 0:01:30]} e5 {[%emt 0:28:30]} 12. Bg5 {[%emt 0:01:30]} Be6 {[%emt 0:05:30]} 13. Nfd2 $146 {[%emt 0:02:30]} ({Predecessor:} 13. Nh4 h6 14. Bxf6 Bxf6 15. Nf5 Ne7 16. Nce3 Bxf5 17. exf5 Bg5 18. Nc4 Nxf5 19. Qxe5 Qxe5 20. Nxe5 {1-0 (59) Sapis,W (2396)-Skomial,M (2025) Jastrzebia Gora 2015}) 13... Rd7 {[%emt 0:05:55]} 14. Ne3 {[%emt 0:06:30]} Rad8 {[%emt 0:01:14]} 15. Rfd1 {[%emt 0:01:30]} h6 {[%emt 0:01:43]} 16. Bxf6 $1 {[%emt 0:01:30]} Bxf6 {[%emt 0:00:09]} 17. Ndc4 {[%emt 0:02:30]} Ne7 {[%emt 0:03:00]} 18. a4 {[%emt 0:00:30]} Bg5 {[%emt 0:07:46]} 19. Nd5 {[%emt 0:18:30]} Nxd5 {[%emt 0:01:47]} 20. exd5 {[%emt 0:00:00]} Bxd5 {[%emt 0:01:08]} 21. Nxe5 {[%emt 0:00:00]} Re7 {[%emt 0:01:05]} 22. f4 {[%emt 0:00:30]} Bxg2 {[%emt 0:00:51]} 23. Qxg2 {[%emt 0:00:30]} Bf6 {[%emt 0:00:10]} 24. Ng4 {[%emt 0:02:30]} Rxd1+ {[%emt 0:01:14]} 25. Rxd1 {[%emt 0:00:00]} Qb6 {[%emt 0:00:22]} 26. Qf2 {[%emt 0:08:00]} Qb3 {[%emt 0:01:15]} 27. Rd8+ {[%emt 0:19:30]} Kh7 {[%emt 0:00:06]} 28. Nxf6+ {[%emt 0:00:30]} gxf6 {[%emt 0:00:30]} 29. Qxc5 {[%emt 0:00:00]} Qe6 {[%emt 0:00:22]} 30. Qf2 {[%emt 0:04:00]} Qc4 {[%emt 0:01:36]} 31. Rd4 {[%emt 0:05:30]} Qe6 {[%emt 0:00:52]} 32. Qd2 {[%emt 0:01:30]} Qg4 {[%emt 0:01:10]} 33. Qd3+ {[%emt 0:03:20]} Kg7 {[%emt 0:00:05]} 34. f5 {[%emt 0:06:37]} Qh3 {[%emt 0:00:31]} 35. Qf1 {[%emt 0:00:58]} Qh5 {[%emt 0:00:20]} 36. Rf4 {[%emt 0:02:13]} Re5 {[%emt 0:00:47]} 37. Qf3 {[%emt 0:00:53]} Qh3 {[%emt 0:00:54]} 38. Qd3 {[%emt 0:02:29]} Re1+ {[%emt 0:00:25]} 39. Kf2 {[%emt 0:00:28]} Rh1 {[%emt 0:00:13]} 40. Ke3 {[%emt 0:02:54]} Rxh2 {[%emt 0:00:27]} 41. Kd4 {[%emt 0:01:05]} Qg2 {[%emt 0:00:50]} 42. b3 {[%emt 0:01:54]} h5 {[%emt 0:00:15]} 43. Kc4 {[%emt 0:01:49]} a5 {[%emt 0:00:18]} 44. Qf3 {[%emt 0:00:43]} Qd2 {[%emt 0:00:59]} 45. Rd4 {[%emt 0:01:10]} Qe1 {[%emt 0:00:24]} 46. g4 {[%emt 0:00:27]} h4 {[%emt 0:00:31]} 47. g5 {[%emt 0:00:16]} fxg5 {[%emt 0:00:22]} 48. f6+ {[%emt 0:01:17]} Kg6 {[%emt 0:00:46]} 49. Qd3+ {[%emt 0:00:44]} Kh6 {[%emt 0:00:08]} 50. Re4 {[%emt 0:00:32]} Qf2 {[%emt 0:00:41]} 51. Qd8 {[%emt 0:00:52]} Qf5 {[%emt 0:00:21]} 52. Qf8+ {[%emt 0:00:31] Double Attack} Kh5 {[%emt 0:00:51]} 53. Qh8+ {[%emt 0:00:30]} Kg6 {[%emt 0:00:00]} 54. Qg7+ {[%emt 0:00:07]} Kh5 {[%emt 0:00:09]} 55. Qxf7+ {[%emt 0:00:00]} Qg6 {[%emt 0:00:00]} 56. Qe6 {[%emt 0:00:00]} Rf2 {[%emt 0:01:00]} 57. Qg4+ {[%emt 0:01:52]} Kh6 {[%emt 0:00:09]} 58. Rd4 {[%emt 0:00:41]} (58. Kd4 $142 Qxf6+ 59. Kd3 Qd6+ 60. Rd4) 58... Qxf6 {[%emt 0:00:47]} 59. Qd1 {[%emt 0:00:54]} Qc6+ {[%emt 0:00:30]} 60. Kd3 {[%emt 0:00:00]} Qf3+ {[%emt 0:00:19]} 61. Qxf3 {[%emt 0:00:00]} Rxf3+ {[%emt 0:00:01]} 62. Ke2 {[%emt 0:00:06]} Rxc3 {[%emt 0:00:10]} 63. Rd6+ {[%emt 0:00:02]} Kh5 {[%emt 0:00:15]} 64. Rb6 {[%emt 0:00:30]} Rc7 {[%emt 0:00:00]} 65. Rb5 {[%emt 0:00:01]} Rf7 {[%emt 0:00:00]} 66. Rxa5 {[%emt 0:00:00]} h3 {[%emt 0:00:57]} 67. Ra8 {[%emt 0:00:26]} Kg4 {[%emt 0:00:00]} 68. Rh8 {[%emt 0:00:20]} Kg3 {[%emt 0:00:14]} 69. a5 {[%emt 0:00:12]} h2 {[%emt 0:00:05]} 70. Rh5 {[%emt 0:00:00]} Rf5 {[%emt 0:00:00]} 71. b4 {[%emt 0:01:59]} Kg2 {[%emt 0:00:07]} 72. b5 {[%emt 0:00:00]} h1=Q {[%emt 0:00:46]} 73. Rxh1 {[%emt 0:00:09]} Kxh1 {[%emt 0:00:08]} 74. a6 {[%emt 0:00:09]} bxa6 {[%emt 0:00:30]} 75. bxa6 {[%emt 0:00:00]} Ra5 {[%emt 0:00:00]} 0-1

[Event "Turkish Second League 2019"]
[Site "Konya"]
[Date "2019.07.23"]
[Round "2"]
[White "Demirtas, Hafize"]
[Black "Konal, Emine Nursel"]
[Result "1-0"]
[ECO "C55"]
[WhiteElo "1893"]
[BlackElo "1306"]
[Annotator "NA"]
[PlyCount "55"]
[EventDate "2019.07.22"]
[EventType "team-tourn"]
[EventCountry "TUR"]
[SourceTitle "playchess.com"]
[Source "ChessBase"]
[SourceQuality "1"]
[TimeControl "5400+30"]

1. e4 {[%emt 0:00:30]} e5 {[%emt 0:00:30]} 2. Nf3 {[%emt 0:00:30]} Nf6 {[%emt 0:00:00]} 3. Nc3 {[%emt 0:01:30]} Nc6 {[%emt 0:00:00]} 4. Bc4 {[%emt 0:01:30]} Bb4 {[%emt 0:00:30]} 5. d3 {[%emt 0:01:30]} h6 {[%emt 0:00:30]} 6. O-O {[%emt 0:01:30]} O-O {[%emt 0:03:30]} 7. Nd5 {[%emt 0:02:30]} Ba5 {[%emt 0:02:30]} 8. c3 {[%emt 0:02:30]} d6 {[%emt 0:00:30]} 9. b4 {[%emt 0:03:30] C55: Two Knights: 4 d3, 4 d4 exd4 5 e5 and Max Lange Attack} Bb6 {[%emt 0:00:30]} 10. Nxb6 {[%emt 0:00:30]} (10. a4 a6 11. Nxb6 cxb6 12. Re1 Re8 13. Bd2 Bd7 14. Qb3 Be6 15. Bxe6 Rxe6 16. c4 Nh5 {1-0 (34) Egin,V (2410)-Iuldachev,S (2511) Tashkent 2010}) 10... axb6 {[%emt 0:00:00]} 11. h3 {[%emt 0:03:30]} ({Predecessor:} 11. Qb3 Ne7 12. Qc2 Ng6 13. d4 {0-1 (63) Bukhteeva,V (2169)-Velcheva,M (2224) Sunny Beach 2015}) 11... Ne7 {[%emt 0:10:00]} 12. Qc2 {[%emt 1:16:30]} Ng6 {[%emt 0:21:30]} (12... Nc6 {[%emt 0:21:30]}) 13. d4 {[%emt 0:00:30]} Nh5 {[%emt 0:00:30]} 14. Kh2 {[%emt 0:00:30]} Kh8 {[%emt 0:00:30]} 15. dxe5 {[%emt 0:00:30]} dxe5 {[%emt 0:00:30]} 16. Qd1 {[%emt 0:00:30]} Qe7 {[%emt 0:00:30]} 17. g3 {[%emt 0:00:30]} b5 {[%emt 0:00:30]} 18. Bb3 {[%emt 0:00:30]} f5 $2 {[%emt 0:00:30]} (18... Nf6 $15 {stays ahead.}) 19. Nxe5 {[%emt 0:00:30]} Qxe5 {[%emt 0:00:30]} 20. Qxh5 {[%emt 0:00:30]} Kh7 $18 {[%emt 0:42:09]} 21. Be3 {[%emt 0:00:00]} Qxc3 {[%emt 0:07:29]} 22. Rac1 {[%emt 0:00:00]} Qe5 {[%emt 0:02:23]} 23. Rc5 {[%emt 0:00:00]} Qxe4 {[%emt 0:01:25]} 24. Rxc7 {[%emt 0:00:00]} f4 {[%emt 0:02:50]} 25. Bc2 {[%emt 0:00:00]} fxg3+ {[%emt 0:01:54]} 26. fxg3 {[%emt 0:00:00]} Rxa2 {[%emt 0:00:23]} 27. Qxh6+ {[%emt 0:00:00]} Kg8 {[%emt 0:01:19]} 28. Qxg7# {[%emt 0:00:00]} 1-0

[Event "Turkish Second League 2019"]
[Site "Konya"]
[Date "2019.07.23"]
[Round "2"]
[White "Isik, Recep"]
[Black "Zor, Alber Kadir"]
[Result "0-1"]
[ECO "C60"]
[WhiteElo "1893"]
[BlackElo "2160"]
[Annotator "ChessBase"]
[PlyCount "84"]
[EventDate "2019.07.22"]
[EventType "team-tourn"]
[EventCountry "TUR"]
[SourceTitle "playchess.com"]
[Source "ChessBase"]
[SourceQuality "1"]
[TimeControl "5400+30"]

1. e4 {[%emt 0:00:30]} e5 {[%emt 0:02:30]} 2. Nf3 {[%emt 0:00:30]} Nc6 {[%emt 0:00:00]} 3. Bb5 {[%emt 0:00:00]} Nge7 {[%emt 0:06:00]} 4. O-O {[%emt 0:03:00]} a6 {[%emt 0:02:30]} 5. Bxc6 {[%emt 0:01:30]} Nxc6 {[%emt 0:00:30]} 6. d4 {[%emt 0:00:30]} d6 {[%emt 0:04:30]} 7. dxe5 {[%emt 0:01:30]} Nxe5 {[%emt 0:02:30]} 8. Nxe5 {[%emt 0:13:30]} dxe5 {[%emt 0:00:30]} 9. Qxd8+ {[%emt 0:01:30]} Kxd8 {[%emt 0:00:00]} 10. Rd1+ {[%emt 0:00:30]} Ke8 {[%emt 0:08:00]} 11. Nc3 {[%emt 0:04:30]} c6 {[%emt 0:01:30]} 12. Be3 {[%emt 0:00:00]} b5 {[%emt 0:01:30]} 13. Bb6 {[%emt 0:01:00]} Be6 {[%emt 0:02:30]} 14. b3 {[%emt 0:04:30]} f6 {[%emt 0:11:30]} 15. Rd3 {[%emt 0:00:30]} Be7 {[%emt 0:07:30]} 16. Rad1 {[%emt 0:02:30]} Rc8 {[%emt 0:01:30]} 17. f3 {[%emt 0:04:30]} Kf7 {[%emt 0:05:30]} 18. Kf2 {[%emt 0:01:30]} h5 {[%emt 0:08:30]} 19. h3 {[%emt 0:00:30]} g5 {[%emt 0:00:30]} 20. a4 {[%emt 0:00:30]} g4 {[%emt 0:03:30]} 21. h4 {[%emt 0:17:30]} gxf3 {[%emt 0:01:30]} 22. gxf3 {[%emt 0:02:30]} f5 {[%emt 0:01:30]} 23. Rh1 {[%emt 0:11:30]} f4 {[%emt 0:00:00]} 24. a5 {[%emt 0:01:30]} Rhg8 {[%emt 0:00:00]} 25. Ne2 {[%emt 0:00:00]} c5 {[%emt 0:01:30]} 26. Rd2 {[%emt 0:24:50]} c4 {[%emt 0:01:30]} 27. bxc4 {[%emt 0:01:31]} Rxc4 {[%emt 0:00:00]} 28. c3 {[%emt 0:00:16]} Rc6 {[%emt 0:01:00]} 29. Ke1 {[%emt 0:01:37]} b4 {[%emt 0:00:30]} 30. Bf2 {[%emt 0:00:12]} bxc3 {[%emt 0:00:30]} 31. Rc2 {[%emt 0:00:12]} Bb3 {[%emt 0:00:30]} 32. Rc1 {[%emt 0:01:17]} c2 {[%emt 0:00:00]} 33. Rg1 {[%emt 0:00:02]} Bb4+ {[%emt 0:01:00]} 34. Kf1 {[%emt 0:00:00]} Bd2 {[%emt 0:01:30]} 35. Rxg8 {[%emt 0:00:30]} Kxg8 {[%emt 0:00:00]} 36. Be1 {[%emt 0:00:09]} Bxc1 {[%emt 0:01:00]} 37. Nxc1 {[%emt 0:00:01]} Bc4+ {[%emt 0:00:30]} 38. Kf2 {[%emt 0:00:01]} Rd6 {[%emt 0:00:30]} 39. Bc3 {[%emt 0:00:39]} Rd1 {[%emt 0:00:00]} 40. Bb2 {[%emt 0:00:10]} Kf7 {[%emt 0:00:00]} 41. Ba3 {[%emt 0:01:32]} Ke6 {[%emt 0:00:00]} 42. Bb2 {[%emt 0:00:16]} Kd6 {[%emt 0:00:00]} 0-1

[Event "Turkish Second League 2019"]
[Site "Konya"]
[Date "2019.07.23"]
[Round "2"]
[White "Catal, Uktenur"]
[Black "Goksu, Beyza"]
[Result "1-0"]
[ECO "E76"]
[WhiteElo "1885"]
[BlackElo "1107"]
[Annotator "NA"]
[PlyCount "41"]
[EventDate "2019.07.22"]
[EventType "team-tourn"]
[EventCountry "TUR"]
[SourceTitle "playchess.com"]
[Source "ChessBase"]
[SourceQuality "1"]
[TimeControl "5400+30"]

1. d4 {[%emt 0:00:30]} Nf6 {[%emt 0:00:30]} 2. c4 {[%emt 0:00:30]} g6 {[%emt 0:00:30]} 3. Nc3 {[%emt 0:00:00]} Bg7 {[%emt 0:00:30]} 4. e4 {[%emt 0:00:00]} d6 {[%emt 0:00:30]} 5. f4 {[%emt 0:00:30]} O-O {[%emt 0:06:30]} 6. Nf3 {[%emt 0:00:00]} Nfd7 {[%emt 0:05:30]} 7. Be2 {[%emt 0:02:00] E76: King's Indian: Four Pawns Attack: Lines specific to 6 Nf3 move-order} e5 {[%emt 0:02:30]} 8. fxe5 {[%emt 0:00:30]} dxe5 {[%emt 0:00:30]} 9. d5 {[%emt 0:00:00]} f5 {[%emt 0:06:30]} 10. exf5 $146 {[%emt 0:06:00]} ({Predecessor:} 10. Be3 f4 11. Bf2 c5 12. O-O Na6 13. Nb5 Kh8 14. Nd6 {1-0 (63) Taylor,T (2326)-Pesotsky,V (2371) Budapest 2008}) 10... Rxf5 {[%emt 0:01:30]} 11. O-O {[%emt 0:00:30]} c6 {[%emt 0:06:30]} 12. Be3 {[%emt 0:01:30]} Rf8 {[%emt 0:04:30]} 13. Qd2 {[%emt 0:03:30]} Qe7 {[%emt 0:05:30]} 14. Ne4 $18 {[%emt 0:01:30]} Nf6 {[%emt 0:05:30]} 15. Nxf6+ {[%emt 0:01:30]} Qxf6 {[%emt 0:00:30]} 16. Ng5 {[%emt 0:02:30]} Qd8 {[%emt 0:03:30]} 17. Rxf8+ {[%emt 0:02:30]} Qxf8 {[%emt 0:00:30]} 18. Rf1 {[%emt 0:00:00]} Qe8 {[%emt 0:02:30]} 19. dxc6 {[%emt 0:04:00]} bxc6 {[%emt 0:03:30]} 20. c5 {[%emt 0:00:30]} Bf5 {[%emt 0:05:30]} 21. Bc4+ {[%emt 0:00:30]} 1-0